bitfinex/quotes_BTCUSD_20241120
["timestamp","ask_amount","ask_price","bid_price","bid_amount"]
[1732139812973,0.0017126,94348.0,94347.0,0.5475874]
[1732139813431,0.0017126,94348.0,94347.0,0.73610194]
[1732139813669,0.0017126,94348.0,94347.0,0.5475874]
[1732139814350,0.0017126,94348.0,94347.0,0.62816308]
[1732139815072,0.0017126,94348.0,94347.0,0.5475874]
[1732139817100,0.0017126,94348.0,94347.0,0.5455874]
[1732139819156,0.0017126,94348.0,94347.0,0.5475874]
[1732139821907,0.0017126,94348.0,94347.0,0.62816308]
[1732139823509,0.0017126,94348.0,94347.0,0.91149943]
[1732139823878,0.0017126,94348.0,94347.0,0.83103201]
[1732139824135,0.0017126,94348.0,94347.0,0.82903201]
[1732139824524,0.0017126,94348.0,94347.0,0.5455874]
[1732139824677,0.0017126,94348.0,94347.0,0.82903201]
[1732139825079,0.0017126,94348.0,94347.0,0.5455874]
[1732139825319,0.0017126,94348.0,94347.0,0.5475874]
[1732139825548,0.0017126,94348.0,94347.0,0.62816308]
[1732139830193,0.0001378,94353.0,94352.0,0.02]
[1732139830411,0.0001378,94353.0,94352.0,0.49425248]
[1732139830529,0.0001378,94353.0,94352.0,0.49687755]
[1732139836754,0.0001378,94353.0,94352.0,0.49887755]
[1732139842642,0.0001378,94353.0,94352.0,0.49687755]
[1732139844721,0.0001378,94353.0,94352.0,0.33572619]
[1732139844960,0.0001378,94353.0,94352.0,0.49687755]
[1732139846605,0.0001378,94353.0,94352.0,0.49773355]
[1732139850120,0.0001378,94353.0,94352.0,0.7813305]
[1732139850334,0.0001378,94353.0,94352.0,0.49773355]
[1732139850558,0.0001378,94353.0,94352.0,0.78133925]
[1732139851036,0.0001378,94353.0,94352.0,0.49773355]
[1732139852324,0.0001378,94353.0,94352.0,0.41715787]
[1732139853504,0.0001378,94353.0,94352.0,0.49773355]
[1732139853843,0.0001378,94353.0,94352.0,0.41715787]
[1732139864605,0.0001378,94353.0,94352.0,0.49773355]
[1732139864816,0.0001378,94353.0,94352.0,0.49973355]
[1732139865508,0.0001378,94353.0,94352.0,0.57653355]
[1732139865975,0.0001378,94353.0,94352.0,0.99523198]
[1732139866434,0.0001378,94353.0,94352.0,0.57653355]
[1732139869604,8e-07,94353.0,94352.0,0.62253355]
[1732139871449,0.001712,94391.0,94352.0,0.62253355]
[1732139871450,0.049,94381.0,94372.0,0.125963]
[1732139871646,0.049,94381.0,94372.0,0.49422948]
[1732139871853,0.049,94381.0,94372.0,0.78008639]
[1732139872279,0.049,94381.0,94372.0,0.49681398]
[1732139874986,0.049,94381.0,94372.0,0.60432377]
[1732139875191,0.049,94381.0,94372.0,0.68489945]
[1732139875451,0.049,94381.0,94372.0,0.4491065]
[1732139875681,0.049,94381.0,94372.0,0.4591065]
[1732139876131,0.049,94381.0,94372.0,0.60057597]
[1732139876320,0.049,94381.0,94372.0,0.4591065]
[1732139876741,0.049,94381.0,94372.0,0.60056181]
[1732139876994,0.049,94381.0,94372.0,0.6477295]
[1732139877403,0.049,94381.0,94372.0,0.4591065]
[1732139878359,0.049,94381.0,94372.0,0.6005415]
[1732139878792,0.049,94381.0,94372.0,0.4591065]
[1732139879611,0.049,94381.0,94372.0,0.6477295]
[1732139879907,0.049,94381.0,94372.0,0.60052867]
[1732139880157,0.049,94381.0,94372.0,0.4591065]
[1732139880769,0.049,94381.0,94372.0,0.60052969]
[1732139881544,0.049,94381.0,94372.0,0.4591065]
[1732139881753,0.049,94381.0,94372.0,0.60052969]
[1732139881924,0.049,94381.0,94372.0,0.4591065]
[1732139882127,0.049,94381.0,94372.0,0.60051808]
[1732139882539,0.049,94381.0,94372.0,0.4591065]
[1732139884108,0.0473,94387.0,94372.0,0.62188218]
[1732139884564,0.0473,94387.0,94372.0,0.85950486]
[1732139884787,0.0473,94387.0,94372.0,0.62188218]
[1732139885026,0.0473,94387.0,94372.0,0.62388218]
[1732139885249,0.0473,94387.0,94372.0,0.62188218]
[1732139885932,0.0473,94387.0,94372.0,0.62388218]
[1732139887169,0.001712,94391.0,94372.0,0.62388218]
[1732139890505,0.001712,94391.0,94372.0,0.85922882]
[1732139892039,0.001712,94391.0,94372.0,0.85722882]
[1732139892216,0.001712,94391.0,94372.0,0.85922882]
[1732139892420,0.001712,94391.0,94372.0,0.62388218]
[1732139893698,0.001712,94391.0,94372.0,0.46273082]
[1732139893932,0.001712,94391.0,94372.0,0.62388218]
[1732139894687,0.001712,94391.0,94372.0,0.81212855]
[1732139895952,0.001712,94391.0,94372.0,0.62388218]
[1732139896303,0.001712,94391.0,94372.0,0.81211297]
[1732139896482,0.001712,94391.0,94372.0,0.81211738]
[1732139897440,0.001712,94391.0,94372.0,0.62388218]
[1732139897996,0.001712,94391.0,94372.0,0.85916506]
[1732139898202,0.001712,94391.0,94372.0,0.62388218]
[1732139898646,0.001712,94391.0,94372.0,0.85916787]
[1732139898794,0.001712,94391.0,94372.0,0.62388218]
[1732139900398,0.001712,94391.0,94372.0,0.46073082]
[1732139900737,0.001712,94391.0,94372.0,0.62188218]
[1732139902812,0.001712,94391.0,94372.0,0.62388218]
[1732139903814,0.001712,94391.0,94372.0,0.62188218]
[1732139904393,0.001712,94391.0,94372.0,0.85718898]
[1732139904600,0.001712,94391.0,94372.0,0.62188218]
[1732139905063,0.0455,94379.0,94372.0,0.56683605]
[1732139905263,0.105944,94389.0,94372.0,0.2614157]
[1732139905439,0.001712,94391.0,94372.0,0.2614157]
[1732139905440,0.1227122,94373.0,94372.0,0.2614157]
[1732139907345,0.1227122,94373.0,94372.0,0.34199138]
[1732139908038,0.0472122,94373.0,94372.0,0.34199138]
[1732139909653,0.0472122,94373.0,94372.0,0.2185475]
[1732139912715,0.0472122,94373.0,94372.0,0.4437475]
[1732139913960,0.39392556,94373.0,94372.0,0.2277845]
[1732139914192,0.59741443,94373.0,94372.0,0.2277845]
[1732139914394,0.59741443,94373.0,94335.0,0.09433183]
[1732139914395,0.16115136,94356.0,94335.0,0.09433183]
[1732139914602,0.08057568,94334.0,94332.0,0.0017122]
[1732139915043,0.16219075,94355.0,94339.0,0.1484]
[1732139915249,0.0756,94356.0,94333.0,0.08057568]
[1732139915453,0.0756,94356.0,94332.0,0.0017122]
[1732139915454,0.0756,94356.0,94355.0,0.105982]
[1732139916077,0.0756,94356.0,94353.0,0.105984]
[1732139916497,0.0756,94356.0,94355.0,0.105982]
[1732139917724,0.0821,94366.0,94363.0,0.105972]
[1732139917966,0.0821,94366.0,94365.0,0.105971]
[1732139918642,0.12407499,94366.0,94365.0,0.105971]
[1732139919064,0.12407499,94366.0,94364.0,0.105972]
[1732139919260,0.12407499,94366.0,94365.0,0.105971]
[1732139919795,0.12407499,94366.0,94364.0,0.105972]
[1732139920432,0.12407499,94366.0,94363.0,0.105972]
[1732139920836,0.12407499,94366.0,94364.0,0.105972]
[1732139921042,0.12407499,94366.0,94365.0,0.105971]
[1732139921717,0.12407499,94366.0,94365.0,0.10784433]
[1732139924963,0.04197499,94366.0,94365.0,0.10784433]
[1732139925159,0.02686287,94380.0,94370.0,0.105965]
[1732139925372,0.02686287,94380.0,94371.0,0.00186767]
[1732139925373,0.13011512,94379.0,94371.0,0.00186767]
[1732139925576,0.13011512,94379.0,94370.0,0.105965]
[1732139925980,0.13011512,94379.0,94371.0,0.105964]
[1732139926216,0.13011512,94379.0,94372.0,0.00186629]
[1732139926416,0.023,94379.0,94372.0,0.00186629]
[1732139926612,0.023,94379.0,94357.0,0.08057568]
[1732139926613,0.023,94379.0,94367.0,0.08057568]
[1732139926814,0.04248138,94380.0,94379.0,0.105955]
[1732139927014,0.128944,94389.0,94379.0,0.10780267]
[1732139927227,0.023,94387.0,94379.0,0.10780267]
[1732139927454,0.10711512,94386.0,94379.0,0.10780267]
[1732139927656,0.001712,94391.0,94384.0,0.10595]
[1732139927841,0.29242868,94405.0,94379.0,0.00184767]
[1732139928047,0.10711512,94394.0,94390.0,0.105942]
[1732139928246,0.10711512,94394.0,94387.0,0.158918]
[1732139928404,0.10711512,94394.0,94391.0,0.00183504]
[1732139928612,0.10711512,94394.0,94389.0,0.105943]
[1732139928822,0.10711512,94394.0,94390.0,0.00183642]
[1732139929022,0.023,94393.0,94390.0,0.10777942]
[1732139929241,0.1237,94398.0,94390.0,0.00183642]
[1732139929242,0.023,94391.0,94390.0,0.00183642]
[1732139929661,0.023,94391.0,94379.0,0.158932]
[1732139929953,0.023,94391.0,94351.0,0.158979]
[1732139929954,0.023,94383.0,94380.0,0.00185675]
[1732139930131,0.13011512,94383.0,94376.0,0.105958]
[1732139930536,0.13011512,94383.0,94377.0,0.00185595]
[1732139930786,0.023,94392.0,94377.0,0.00185595]
[1732139931023,0.10711512,94391.0,94377.0,0.00185595]
[1732139931274,0.08057568,94388.0,94380.0,0.105954]
[1732139931775,0.08057568,94388.0,94378.0,0.158935]
[1732139931776,0.08057568,94388.0,94381.0,0.10780837]
[1732139932023,0.023,94390.0,94382.0,0.105952]
[1732139932256,0.023,94388.0,94383.0,0.10780362]
[1732139932480,0.023,94388.0,94384.0,0.10595]
[1732139932701,0.023,94388.0,94383.0,0.00185262]
[1732139932935,0.023,94388.0,94385.0,0.00184987]
[1732139933166,0.023,94388.0,94384.0,0.00185124]
[1732139933406,0.023,94388.0,94386.0,0.00184849]
[1732139933629,0.023,94388.0,94385.0,0.00184987]
[1732139933852,0.20427568,94398.0,94384.0,0.158924]
[1732139934075,0.105937,94396.0,94386.0,0.105946]
[1732139934287,0.105937,94396.0,94387.0,0.105946]
[1732139934506,0.105937,94396.0,94387.0,0.1077977]
[1732139934761,0.10711512,94397.0,94387.0,0.0018517]
[1732139935201,0.10594,94393.0,94383.0,0.10595]
[1732139935423,0.10594,94393.0,94379.0,0.158933]
[1732139935424,0.211873,94396.0,94379.0,0.158933]
[1732139935639,0.105941,94392.0,94383.0,0.105951]
[1732139936077,0.105941,94392.0,94384.0,0.00185583]
[1732139937248,0.10711512,94397.0,94384.0,0.00185583]
[1732139937466,0.105941,94392.0,94382.0,0.105951]
[1732139937677,0.105941,94392.0,94385.0,0.00185445]
[1732139937897,0.105939,94394.0,94384.0,0.105949]
[1732139938110,0.10711512,94397.0,94386.0,0.00185447]
[1732139938311,0.105938,94395.0,94385.0,0.00185585]
[1732139938472,0.105939,94394.0,94387.0,0.00185309]
[1732139938652,0.105941,94392.0,94382.0,0.105951]
[1732139938847,0.211874,94396.0,94388.0,0.00185172]
[1732139939054,0.105937,94396.0,94386.0,0.105947]
[1732139939308,0.10711512,94397.0,94370.0,0.158948]
[1732139939473,0.09148967,94398.0,94386.0,0.08057568]
[1732139939668,0.09148967,94398.0,94376.0,0.0795]
[1732139939669,0.04328967,94398.0,94397.0,0.105935]
[1732139939870,0.0495,94407.0,94405.0,0.105926]
[1732139940078,0.0008558,94409.0,94406.0,0.105925]
[1732139940282,0.0008558,94409.0,94406.0,0.00182168]
[1732139940897,0.0008558,94409.0,94403.0,0.105928]
[1732139940898,0.04288375,94409.0,94403.0,0.105928]
[1732139941105,0.04288375,94409.0,94407.0,0.00182031]
[1732139941275,0.0008558,94409.0,94404.0,0.105927]
[1732139941472,0.0008558,94409.0,94408.0,0.00181893]
[1732139941675,0.0008558,94409.0,94408.0,0.105923]
[1732139941922,0.0008558,94409.0,94408.0,0.00181893]
[1732139942293,0.0008558,94409.0,94400.0,0.158896]
[1732139942294,0.0008558,94409.0,94405.0,0.105925]
[1732139942524,0.0008558,94409.0,94406.0,0.105924]
[1732139942766,0.0008558,94409.0,94406.0,0.10774568]
[1732139942894,0.0008558,94409.0,94406.0,0.00182168]
[1732139943322,0.0008558,94409.0,94405.0,0.105925]
[1732139943720,0.0008558,94409.0,94406.0,0.10774668]
[1732139943928,0.0008558,94409.0,94406.0,0.00182168]
[1732139944125,0.0008558,94409.0,94406.0,0.10774568]
[1732139944329,0.0008558,94409.0,94402.0,0.158894]
[1732139944557,0.0008558,94409.0,94407.0,0.10774431]
[1732139944752,0.0008558,94409.0,94407.0,0.105924]
[1732139945154,0.0008558,94409.0,94408.0,0.00181893]
[1732139945723,0.0008558,94409.0,94406.0,0.169479]
[1732139945927,0.0008558,94409.0,94408.0,0.00181893]
[1732139946130,0.0008558,94409.0,94407.0,0.105923]
[1732139946131,0.0008558,94409.0,94407.0,0.10774331]
[1732139946333,0.0008558,94409.0,94408.0,0.00181893]
[1732139946845,0.0008558,94409.0,94408.0,0.10774193]
[1732139947289,0.0008558,94409.0,94408.0,0.00181893]
[1732139947924,0.0008558,94409.0,94407.0,0.105924]
[1732139948145,0.0008558,94409.0,94408.0,0.00181893]
[1732139948353,0.0008558,94409.0,94408.0,0.10774193]
[1732139948554,0.0008558,94409.0,94408.0,0.105923]
[1732139948762,0.0008558,94409.0,94408.0,0.18931443]
[1732139950052,0.0008558,94409.0,94408.0,0.10771443]
[1732139950265,0.0008558,94409.0,94408.0,0.00179143]
[1732139950711,0.0008558,94409.0,94403.0,0.105928]
[1732139951034,0.0008558,94409.0,94406.0,0.105924]
[1732139951196,0.0008558,94409.0,94407.0,0.0017928]
[1732139951399,0.0008558,94409.0,94405.0,0.105926]
[1732139951600,0.0008558,94409.0,94406.0,0.00179418]
[1732139952567,0.0008558,94409.0,94406.0,0.10771918]
[1732139952824,0.0008558,94409.0,94406.0,0.00179418]
[1732139953028,0.0008558,94409.0,94398.0,0.169493]
[1732139953230,0.0008558,94409.0,94404.0,0.105927]
[1732139953432,0.0008558,94409.0,94405.0,0.00179555]
[1732139953633,0.0008558,94409.0,94404.0,0.105927]
[1732139953850,0.0008558,94409.0,94405.0,0.105926]
[1732139953989,0.0008558,94409.0,94405.0,0.10770504]
[1732139954801,0.0008558,94409.0,94406.0,0.105925]
[1732139955001,0.0008558,94409.0,94407.0,0.00177629]
[1732139956418,0.0008558,94409.0,94405.0,0.105926]
[1732139956419,0.0008558,94409.0,94408.0,0.00177491]
[1732139956614,0.0008558,94409.0,94405.0,0.105926]
[1732139956791,0.0008558,94409.0,94406.0,0.00177766]
[1732139957888,0.0008558,94409.0,94402.0,0.105929]
[1732139958023,0.0008558,94409.0,94407.0,0.00177629]
[1732139958226,0.0008558,94409.0,94404.0,0.105927]
[1732139958430,0.0008558,94409.0,94405.0,0.00177904]
[1732139958431,0.105924,94407.0,94405.0,0.00177904]
[1732139958647,0.105929,94403.0,94393.0,0.105939]
[1732139958872,0.10711512,94402.0,94391.0,0.0816]
[1732139959033,0.10711512,94402.0,94393.0,0.105939]
[1732139959034,0.105931,94401.0,94393.0,0.105939]
[1732139959235,0.105931,94401.0,94394.0,0.00178081]
[1732139959439,0.10711512,94402.0,94394.0,0.00178081]
[1732139959867,0.105931,94401.0,94394.0,0.00178081]
[1732139960088,0.10711512,94402.0,94395.0,0.1695]
[1732139960298,0.10711512,94402.0,94395.0,0.105937]
[1732139960501,0.10711512,94402.0,94390.0,0.169508]
[1732139960502,0.0467,94398.0,94385.0,0.105948]
[1732139960816,0.08057568,94391.0,94384.0,0.105949]
[1732139961168,0.08057568,94391.0,94386.0,0.105947]
[1732139961370,0.08057568,94391.0,94383.0,0.0773]
[1732139961371,0.105943,94390.0,94383.0,0.0773]
[1732139961593,0.08057568,94391.0,94385.0,0.105949]
[1732139962672,0.105941,94392.0,94383.0,0.0773]
[1732139962894,0.105941,94392.0,94384.0,0.105949]
[1732139963099,0.317812,94395.0,94384.0,0.105949]
[1732139963311,0.211873,94396.0,94386.0,0.105947]
[1732139963514,0.105945,94389.0,94381.0,0.105952]
[1732139963716,0.211877,94394.0,94383.0,0.105951]
[1732139963923,0.31899512,94393.0,94379.0,0.169529]
[1732139964131,0.105947,94387.0,94379.0,0.105955]
[1732139964335,0.21189,94389.0,94379.0,0.105955]
[1732139964533,0.10711512,94389.0,94377.0,0.0773]
[1732139964856,0.10711512,94389.0,94372.0,0.169541]
[1732139965093,0.11711512,94388.0,94371.0,0.0781558]
[1732139965327,0.1205861,94393.0,94371.0,0.0781558]
[1732139965328,0.04194636,94393.0,94371.0,0.0781558]
[1732139965586,0.04194636,94393.0,94383.0,0.10595]
[1732139965824,0.0467,94398.0,94380.0,0.169526]
[1732139966033,0.10711512,94396.0,94386.0,0.105947]
[1732139966244,0.10711512,94396.0,94385.0,0.105948]
[1732139966458,0.10711512,94396.0,94387.0,0.0018171]
[1732139966669,0.10711512,94396.0,94386.0,0.00181847]
[1732139966890,0.10711512,94396.0,94388.0,0.00181572]
[1732139967122,0.10711512,94396.0,94384.0,0.169518]
[1732139967359,0.10711512,94396.0,94384.0,0.275467]
[1732139967562,0.10711512,94396.0,94385.0,0.00181714]
[1732139968051,0.138947,94386.0,94385.0,0.00181714]
[1732139968346,0.72037449,94386.0,94385.0,0.00181714]
[1732139968562,0.105963,94372.0,94371.0,0.0008558]
[1732139968763,0.33366422,94372.0,94371.0,0.0008558]
[1732139970955,0.37662773,94372.0,94371.0,0.0008558]
[1732139974722,0.27066473,94372.0,94371.0,0.0008558]
[1732139974994,0.37662773,94372.0,94371.0,0.0008558]
[1732139975691,0.27066473,94372.0,94371.0,0.0008558]
[1732139976108,0.27066473,94372.0,94371.0,0.0025042]
[1732139976311,0.27066473,94372.0,94371.0,0.0008558]
[1732139976447,0.27066473,94372.0,94371.0,0.0025042]
[1732139977464,0.04296351,94372.0,94371.0,0.0025042]
[1732139977638,0.04296351,94372.0,94371.0,0.1084682]
[1732139977791,0.1205861,94384.0,94374.0,0.10596]
[1732139977994,0.10711512,94383.0,94374.0,0.10596]
[1732139978344,0.10711512,94383.0,94375.0,0.10760939]
[1732139978483,0.10711512,94383.0,94376.0,0.105958]
[1732139978688,0.10711512,94383.0,94378.0,0.105956]
[1732139978882,0.10711512,94383.0,94379.0,0.00164388]
[1732139979129,0.10711512,94383.0,94376.0,0.105958]
[1732139979329,0.10711512,94383.0,94380.0,0.0016425]
[1732139979531,0.10711512,94383.0,94371.0,0.0008558]
[1732139979705,0.10711512,94383.0,94381.0,0.00164113]
[1732139979914,0.10711512,94383.0,94371.0,0.0008558]
[1732139980274,0.10711512,94383.0,94377.0,0.105957]
[1732139980404,0.10711512,94383.0,94378.0,0.105956]
[1732139980610,0.10711512,94383.0,94378.0,0.10760126]
[1732139980787,0.10711512,94383.0,94378.0,0.00164526]
[1732139981237,0.10711512,94383.0,94379.0,0.10760075]
[1732139981435,0.10711512,94383.0,94380.0,0.105954]
[1732139981655,0.10711512,94383.0,94381.0,0.00164299]
[1732139981866,0.10711512,94383.0,94380.0,0.105954]
[1732139982088,0.10711512,94383.0,94381.0,0.00164299]
[1732139982299,0.1205861,94382.0,94381.0,0.00164299]
[1732139982523,0.1205861,94382.0,94376.0,0.105958]
[1732139982720,0.1205861,94382.0,94377.0,0.0016485]
[1732139982986,0.1205861,94382.0,94376.0,0.105958]
[1732139983156,0.1205861,94382.0,94378.0,0.00164712]
[1732139983370,0.1205861,94382.0,94377.0,0.0016485]
[1732139983571,0.1205861,94382.0,94379.0,0.00164575]
[1732139983794,0.1205861,94382.0,94378.0,0.00164712]
[1732139983963,0.1205861,94382.0,94380.0,0.00164437]
[1732139984149,0.1205861,94382.0,94379.0,0.00164575]
[1732139984350,0.1205861,94382.0,94381.0,0.00164299]
[1732139984607,0.1205861,94382.0,94380.0,0.00164697]
[1732139984893,0.1205861,94382.0,94374.0,0.169538]
[1732139984894,0.1205861,94382.0,94381.0,0.00164559]
[1732139985338,0.1205861,94382.0,94376.0,0.105958]
[1732139985773,0.1205861,94382.0,94377.0,0.0016511]
[1732139986214,0.1205861,94382.0,94376.0,0.105958]
[1732139986435,0.1205861,94382.0,94378.0,0.00164972]
[1732139986645,0.1205861,94382.0,94377.0,0.0016511]
[1732139986868,0.1205861,94382.0,94379.0,0.00164834]
[1732139987079,0.1205861,94382.0,94378.0,0.00164972]
[1732139987253,0.1205861,94382.0,94380.0,0.00164697]
[1732139987393,0.1205861,94382.0,94379.0,0.00164834]
[1732139987599,0.1205861,94382.0,94381.0,0.00164559]
[1732139987797,0.1205861,94382.0,94380.0,0.00164697]
[1732139988249,0.1205861,94382.0,94374.0,0.169538]
[1732139988446,0.1205861,94382.0,94381.0,0.00164559]
[1732139988621,0.1205861,94382.0,94376.0,0.105958]
[1732139988841,0.1205861,94382.0,94381.0,0.00164559]
[1732139989038,0.1205861,94382.0,94376.0,0.105958]
[1732139989240,0.1205861,94382.0,94381.0,0.00164559]
[1732139990134,0.1205861,94382.0,94376.0,0.105958]
[1732139990567,0.1205861,94382.0,94377.0,0.0016511]
[1732139990992,0.1205861,94382.0,94376.0,0.105958]
[1732139991227,0.1205861,94382.0,94378.0,0.00164972]
[1732139991459,0.1205861,94382.0,94377.0,0.00165421]
[1732139991686,0.138954,94380.0,94379.0,0.00165146]
[1732139991917,0.138954,94380.0,94371.0,0.0008558]
[1732139991918,0.138963,94372.0,94371.0,0.0008558]
[1732139992118,0.41266422,94372.0,94371.0,0.0008558]
[1732139992334,0.44432529,94372.0,94371.0,0.0008558]
[1732139992619,0.1205861,94354.0,94347.0,0.105991]
[1732139992835,0.1205861,94354.0,94348.0,0.10599]
[1732139993048,0.1205861,94354.0,94350.0,0.105988]
[1732139993268,0.1205861,94354.0,94351.0,0.105986]
[1732139993488,0.1205861,94354.0,94346.0,0.169587]
[1732139993964,0.1205861,94354.0,94350.0,0.105987]
[1732139994182,0.1205861,94354.0,94344.0,0.0803]
[1732139994398,0.1205861,94354.0,94348.0,0.10599]
[1732139994614,0.1205861,94354.0,94349.0,0.105989]
[1732139995681,0.1205861,94354.0,94351.0,0.105986]
[1732139997821,0.1205861,94361.0,94359.0,0.105977]
[1732139998054,0.1205861,94361.0,94357.0,0.10598]
[1732139999417,0.1205861,94361.0,94356.0,0.08]
[1732139999654,0.1205861,94361.0,94358.0,0.105978]
[1732140000206,0.164262,94361.0,94356.0,0.18598]
[1732140000353,0.164262,94361.0,94349.0,0.247581]
[1732140000580,0.105978,94359.0,94352.0,0.105985]
[1732140000811,0.270238,94361.0,94353.0,0.1068403]
[1732140001049,0.376215,94361.0,94353.0,0.0008563]
[1732140001524,0.270238,94361.0,94355.0,0.105982]
[1732140004103,0.164262,94361.0,94353.0,0.0008563]
[1732140004301,0.164262,94361.0,94355.0,0.105982]
[1732140005553,0.164262,94361.0,94353.0,0.0008563]
[1732140005676,0.164262,94361.0,94356.0,0.10598]
[1732140005900,0.0436759,94361.0,94360.0,0.188277]
[1732140006110,0.09474549,94367.0,94360.0,0.0823]
[1732140006330,0.09474549,94368.0,94364.0,0.105972]
[1732140006590,0.09474549,94369.0,94366.0,0.10597]
[1732140006808,0.09474549,94369.0,94361.0,0.169561]
[1732140006809,0.10711512,94369.0,94361.0,0.169561]
[1732140007013,0.10711512,94369.0,94364.0,0.105971]
[1732140007706,0.10711512,94369.0,94360.0,0.0823]
[1732140007707,0.10711512,94369.0,94363.0,0.105973]
[1732140007927,0.10711512,94369.0,94362.0,0.169559]
[1732140008324,0.10711512,94369.0,94364.0,0.105972]
[1732140008894,0.10711512,94369.0,94362.0,0.275532]
[1732140009126,0.04323164,94371.0,94366.0,0.105969]
[1732140009376,0.04323164,94371.0,94366.0,0.10597]
[1732140009609,0.09474549,94376.0,94360.0,0.0823]
[1732140009839,0.09474549,94378.0,94374.0,0.0815]
[1732140010062,0.14211824,94381.0,94374.0,0.0815]
[1732140010063,0.10711512,94377.0,94374.0,0.0815]
[1732140010297,0.10711512,94377.0,94374.0,0.18746]
[1732140010536,0.10711512,94377.0,94376.0,0.105959]
[1732140010783,0.10711512,94377.0,94374.0,0.246037]
[1732140011002,0.09474549,94381.0,94374.0,0.0765]
[1732140011189,0.10711512,94380.0,94376.0,0.105958]
[1732140011592,0.04228556,94382.0,94381.0,0.105953]
[1732140012069,0.23686373,94393.0,94373.0,0.0478]
[1732140012070,0.09474549,94385.0,94384.0,0.10595]
[1732140012274,0.09474549,94386.0,94382.0,0.169522]
[1732140012487,0.09474549,94385.0,94383.0,0.169522]
[1732140012742,0.09474549,94385.0,94384.0,0.10595]
[1732140012958,0.09474549,94387.0,94385.0,0.105948]
[1732140013193,0.09474549,94387.0,94379.0,0.169529]
[1732140013194,0.09474549,94387.0,94380.0,0.275481]
[1732140013392,0.1205861,94381.0,94373.0,0.0478]
[1732140013613,0.1205861,94376.0,94374.0,0.0783]
[1732140013877,0.1205861,94376.0,94374.0,0.18426]
[1732140014138,0.10711512,94381.0,94374.0,0.18426]
[1732140014407,0.1205861,94375.0,94368.0,0.0783]
[1732140014673,0.22770122,94375.0,94368.0,0.0783]
[1732140014913,0.105964,94372.0,94364.0,0.105972]
[1732140015158,0.105966,94370.0,94362.0,0.105974]
[1732140015424,0.1205861,94368.0,94359.0,0.0783]
[1732140015631,0.1205861,94368.0,94362.0,0.105973]
[1732140015851,0.1205861,94368.0,94361.0,0.169561]
[1732140016070,0.1205861,94368.0,94364.0,0.105972]
[1732140016508,0.1205861,94368.0,94361.0,0.169561]
[1732140016509,0.1205861,94368.0,94362.0,0.105974]
[1732140016995,0.1205861,94368.0,94363.0,0.105973]
[1732140020710,0.1205861,94368.0,94362.0,0.105973]
[1732140020938,0.1205861,94368.0,94359.0,0.0783]
[1732140021272,0.2265541,94368.0,94362.0,0.105974]
[1732140021470,0.1205861,94368.0,94362.0,0.105974]
[1732140021702,0.1205861,94368.0,94360.0,0.169563]
[1732140021877,0.1205861,94368.0,94362.0,0.105974]
[1732140023335,0.2265541,94368.0,94362.0,0.105974]
[1732140023544,0.1205861,94368.0,94364.0,0.105972]
[1732140023816,0.1205861,94368.0,94360.0,0.169563]
[1732140023817,0.0017122,94371.0,94360.0,0.105977]
[1732140024020,0.0017122,94371.0,94359.0,0.0783]
[1732140024021,0.0017122,94371.0,94367.0,0.105968]
[1732140024234,0.0017122,94371.0,94360.0,0.105977]
[1732140024443,0.0017122,94371.0,94359.0,0.0783]
[1732140024649,0.0017122,94371.0,94370.0,0.105965]
[1732140024852,0.0017122,94371.0,94370.0,0.184965]
[1732140031700,0.0034244,94371.0,94370.0,0.184965]
[1732140043568,0.0034244,94371.0,94370.0,0.184965]
[1732140043726,0.0034244,94371.0,94370.0,0.194965]
[1732140043932,0.0017122,94371.0,94370.0,0.194965]
[1732140047178,0.0017122,94371.0,94370.0,0.195821]
[1732140047402,0.2282623,94371.0,94370.0,0.010856]
[1732140047628,0.32328249,94371.0,94370.0,0.010856]
[1732140047843,0.2282623,94371.0,94370.0,0.010856]
[1732140048476,0.41830268,94371.0,94370.0,0.010856]
[1732140048708,0.76926155,94371.0,94370.0,0.010856]
[1732140048913,0.57922117,94371.0,94370.0,0.010856]
[1732140049522,0.62307778,94371.0,94370.0,0.010856]
[1732140050132,0.27211891,94371.0,94370.0,0.010856]
[1732140050406,0.62308589,94371.0,94370.0,0.010856]
[1732140054937,0.62310333,94371.0,94370.0,0.010856]
[1732140055179,0.52129658,94371.0,94370.0,0.010856]
[1732140055434,1.03208695,94371.0,94370.0,0.010856]
[1732140056629,0.88841765,94371.0,94370.0,0.010856]
[1732140057283,0.89041765,94371.0,94370.0,0.010856]
[1732140057529,0.89341765,94371.0,94370.0,0.010856]
[1732140057733,0.89141765,94371.0,94370.0,0.010856]
[1732140057907,0.88841765,94371.0,94370.0,0.010856]
[1732140058931,0.96114014,94371.0,94370.0,0.010856]
[1732140059223,0.89041765,94371.0,94370.0,0.010856]
[1732140059481,0.89341765,94371.0,94370.0,0.010856]
[1732140059716,0.88841765,94371.0,94370.0,0.010856]
[1732140059966,0.89341765,94371.0,94370.0,0.010856]
[1732140062190,1.1309631,94371.0,94370.0,0.010856]
[1732140062415,1.13095148,94371.0,94370.0,0.010856]
[1732140062619,1.13094468,94371.0,94370.0,0.010856]
[1732140063072,1.13094724,94371.0,94370.0,0.010856]
[1732140063280,0.88841765,94371.0,94370.0,0.010856]
[1732140063506,1.12594724,94371.0,94370.0,0.010856]
[1732140063716,0.89041765,94371.0,94370.0,0.010856]
[1732140063920,0.88841765,94371.0,94370.0,0.010856]
[1732140064143,0.88941765,94371.0,94370.0,0.010856]
[1732140064368,0.89141765,94371.0,94370.0,0.010856]
[1732140065038,1.12860442,94371.0,94370.0,0.010856]
[1732140065242,0.89110975,94371.0,94370.0,0.010856]
[1732140065445,0.89010975,94371.0,94370.0,0.010856]
[1732140066052,0.89110975,94371.0,94370.0,0.010856]
[1732140066472,1.05287011,94371.0,94370.0,0.010856]
[1732140069091,0.81540975,94371.0,94370.0,0.010856]
[1732140069544,1.05287011,94371.0,94370.0,0.010856]
[1732140069956,0.81540975,94371.0,94370.0,0.010856]
[1732140070520,0.84729256,94371.0,94370.0,0.010856]
[1732140071123,0.138977,94360.0,94359.0,0.0008561]
[1732140071492,0.83794004,94360.0,94359.0,0.0008561]
[1732140071668,1.07536447,94360.0,94359.0,0.0008561]
[1732140071887,0.83794004,94360.0,94359.0,0.0008561]
[1732140072091,1.07536447,94360.0,94359.0,0.0008561]
[1732140072221,0.83794004,94360.0,94359.0,0.0008561]
[1732140072429,1.02782408,94360.0,94359.0,0.0008561]